bitfinex-derivatives/quotes_ETHF0:USTF0_20251216
["timestamp","ask_amount","ask_price","bid_price","bid_amount"]
[1765890195669,3.8806,2950.3,2950.2,2.30340462]
[1765890196672,3.8806,2950.3,2950.2,3.01420462]
[1765890196973,1.3827,2950.3,2950.2,3.01420462]
[1765890197166,3.1727,2950.3,2950.2,3.01420462]
[1765890197470,3.9306,2950.3,2950.2,3.01420462]
[1765890197866,3.1727,2950.3,2950.2,3.01420462]
[1765890198173,3.9306,2950.3,2950.2,3.01420462]
[1765890198669,3.1727,2950.3,2950.2,3.01420462]
[1765890198868,2.43,2950.3,2950.2,4.53060924]
[1765890199072,1.50427839,2950.6,2950.5,1.4978]
[1765890199274,3.77427839,2950.6,2950.5,3.01420462]
[1765890200975,0.00367839,2950.6,2950.5,3.43980462]
[1765890203778,0.4342,2951.5,2950.7,1.4978]
[1765890203978,4.4548,2951.5,2951.4,1.51640462]
[1765890204570,4.4548,2951.5,2951.4,3.01420462]
[1765890204571,0.7427,2951.5,2951.4,3.01420462]
[1765890204776,0.00430749,2951.5,2951.4,3.01420462]
[1765890205380,0.00430749,2951.5,2951.4,3.28216658]
[1765890207277,1.5006,2951.3,2951.2,0.00508001]
[1765890207478,3.7606,2951.3,2951.2,0.00508001]
[1765890207678,3.7606,2951.3,2951.2,1.52148463]
[1765890210489,3.7606,2951.3,2951.2,2.30848463]
[1765890211386,0.00430749,2951.5,2951.4,1.4978]
[1765890211588,0.00430749,2951.5,2951.4,3.01420462]
[1765890214378,0.00508001,2951.7,2951.6,1.5455]
[1765890214583,0.00508001,2951.7,2951.6,3.06190462]
[1765890215282,0.00831178,2951.7,2951.6,3.23133462]
[1765890215888,0.438,2952.5,2951.6,3.23133462]
[1765890216088,4.5279,2952.5,2952.4,1.51640462]
[1765890216991,4.53189874,2952.5,2952.4,1.51895387]
[1765890217191,4.53189874,2952.5,2952.4,0.00254925]
[1765890217789,3.22189874,2952.5,2952.4,0.00254925]
[1765890217983,4.20189874,2952.5,2952.4,0.00254925]
[1765890219191,1.5199,2951.9,2951.8,0.16942]
[1765890219397,1.5199,2951.8,2951.7,0.989]
[1765890219694,4.2299,2951.8,2951.7,0.989]
[1765890220196,4.2299,2951.8,2951.7,0.99208956]
[1765890220897,4.2299,2951.8,2951.7,0.00308956]
[1765890221298,4.2299,2951.8,2951.2,0.00508001]
[1765890221299,1.5199,2951.3,2951.2,0.00508001]
[1765890221499,3.8799,2951.3,2951.2,0.00508001]
[1765890222199,3.8799,2951.3,2951.2,0.00938221]
[1765890224595,3.8799,2951.3,2951.2,0.72778221]
[1765890226097,3.8799,2951.3,2951.2,1.46978221]
[1765890226699,3.8799,2951.3,2951.2,0.72778221]
[1765890228600,3.8799,2951.3,2951.2,1.46978221]
[1765890230699,0.8541,2951.3,2951.2,1.46978221]
[1765890230902,0.4502,2951.5,2951.2,1.46978221]
[1765890231103,0.4502,2951.5,2951.4,1.4604]
[1765890231104,4.5601,2951.5,2951.4,1.4604]
[1765890232000,1.9701,2951.5,2951.4,1.4604]
[1765890232199,1.1843,2952.0,2951.9,1.4604]
[1765890232400,4.6701,2952.0,2951.9,2.97462746]
[1765890232607,2.2801,2952.0,2951.9,2.97462746]
[1765890232799,2.2201,2952.0,2951.9,2.97462746]
[1765890233000,4.4601,2952.0,2951.9,2.23262746]
[1765890233306,1.5199,2951.6,2951.5,0.16944]
[1765890233508,4.1799,2951.6,2951.5,16.62684]
[1765890234900,4.1799,2951.6,2951.5,15.90844]
[1765890235103,4.1799,2951.6,2951.5,16.62684]
[1765890235510,4.1799,2951.6,2951.5,16.4574]
[1765890235708,4.1799,2951.6,2951.5,15.739]
[1765890236103,1.5199,2951.3,2951.2,0.00938221]
[1765890236303,3.9899,2951.3,2951.2,0.00938221]
[1765890241904,3.2041,2951.3,2951.2,1.46978221]
[1765890242107,3.9899,2951.3,2951.2,0.72778221]
[1765890242309,3.9899,2951.3,2951.2,1.46978221]
[1765890246215,1.9388,2952.0,2951.9,0.7661]
[1765890246415,4.3988,2952.0,2951.9,3.00792746]
[1765890248016,4.3988,2952.0,2951.9,2.28032746]
[1765890248216,1.4886,2951.9,2951.8,8.873]
[1765890248418,3.9486,2951.9,2951.8,8.873]
[1765890248613,3.9486,2951.9,2951.8,9.6391]
[1765890249114,3.9486,2951.9,2951.8,8.873]
[1765890249318,1.4886,2951.7,2951.6,10.63032746]
[1765890249618,3.7786,2951.7,2951.6,10.63032746]
[1765890251420,3.7786,2951.7,2951.6,2.28032746]
[1765890251621,3.7786,2951.7,2951.6,3.00792746]
[1765890252017,0.01,2951.7,2951.6,2.24182746]
[1765890252217,3.9186,2951.7,2951.6,3.00792746]
[1765890253620,3.9186,2951.7,2951.6,2.28032746]
[1765890253927,3.9186,2951.7,2951.2,0.00938221]
[1765890253928,1.4886,2951.3,2951.2,0.00938221]
[1765890254124,3.8986,2951.3,2951.2,0.77548221]
[1765890255415,3.125,2951.3,2951.2,3.0179329]
[1765890255825,1.305,2951.3,2951.2,3.0179329]
[1765890256035,0.59,2951.3,2951.2,3.0179329]
[1765890256235,1.156,2951.5,2951.4,1.4937]
[1765890256532,1.9296,2951.5,2951.4,1.4937]
[1765890257337,1.156,2951.5,2951.4,1.4937]
[1765890258038,1.9296,2951.5,2951.4,1.4937]
[1765890259230,1.156,2951.5,2951.4,1.4937]
[1765890259426,1.9296,2951.5,2951.4,1.4937]
[1765890260832,0.4502,2952.0,2951.4,1.4937]
[1765890261036,4.0388,2952.0,2951.9,3.00855069]
[1765890261338,4.0388,2952.0,2951.9,2.28095069]
[1765890263033,4.0388,2952.0,2951.9,3.00855069]
[1765890263932,2.1,2952.0,2951.9,4.52340138]
[1765890264133,1.93059874,2952.5,2952.4,0.7661]
[1765890264432,1.4886,2952.4,2952.3,2.28095069]
[1765890264632,3.8586,2952.4,2952.3,2.28095069]
[1765890265742,3.8586,2952.4,2952.3,3.00855069]
[1765890267030,0.835,2952.4,2952.3,3.00855069]
[1765890267335,1.655,2952.4,2952.3,3.00855069]
[1765890267536,3.265,2952.4,2952.3,3.00855069]
[1765890267738,4.0386,2952.4,2952.3,3.00855069]
[1765890268337,1.4886,2952.2,2952.1,0.1694]
[1765890268541,4.1486,2952.2,2952.1,0.1694]
[1765890268741,4.1486,2952.2,2952.1,0.9355]
[1765890270541,4.1486,2952.2,2952.1,1.6631]
[1765890270933,4.1486,2952.2,2952.1,0.9355]
[1765890271135,4.1486,2952.2,2952.1,0.1694]
[1765890271537,4.1486,2952.2,2952.1,0.9355]
[1765890272346,4.1486,2952.2,2952.1,0.1694]
[1765890273049,4.1486,2952.2,2952.1,0.9355]
[1765890274043,4.1486,2952.2,2952.1,1.647]
[1765890275350,4.1486,2952.2,2952.1,0.9221]
[1765890275845,4.1486,2952.2,2952.1,0.7527]
[1765890276145,1.4793,2951.8,2951.7,18.00355069]
[1765890276351,3.6993,2951.8,2951.7,18.00355069]
[1765890277254,3.6993,2951.8,2951.5,0.16943]
[1765890277255,1.4793,2951.6,2951.5,1.64703]
[1765890277447,3.8493,2951.6,2951.5,18.89788069]
[1765890278851,2.37,2951.6,2951.5,19.20478069]
[1765890279253,3.8493,2951.6,2951.5,18.89788069]
[1765890279448,3.8493,2951.6,2951.5,17.42004734]
[1765890279751,3.8493,2951.6,2951.5,18.89764734]
[1765890281551,3.8493,2951.6,2951.5,18.17274734]
[1765890282948,1.4793,2951.3,2951.2,1.48698221]
[1765890283153,3.8293,2951.3,2951.2,11.04159955]
[1765890284349,3.8293,2951.3,2951.2,8.80208221]
[1765890284647,3.8293,2951.3,2951.2,1.52399955]
[1765890284849,3.8293,2951.3,2951.2,18.01169955]
[1765890285754,3.8293,2951.3,2951.2,0.00938221]
[1765890287752,1.4793,2950.9,2950.8,11.724]
[1765890287951,4.0993,2950.9,2950.8,11.724]
[1765890288146,3.3453,2950.9,2950.8,13.2016]
[1765890288347,2.62,2950.9,2950.8,13.2016]
[1765890288551,4.0993,2950.9,2950.8,13.2016]
[1765890288752,4.0993,2950.9,2950.8,12.47953256]
[1765890289550,2.62,2950.9,2950.8,13.20443256]
[1765890289751,0.73038001,2951.1,2951.0,1.4776]
[1765890289955,3.44038001,2951.1,2951.0,2.99221734]
[1765890290358,0.89508001,2951.1,2951.0,3.42131734]
[1765890290561,0.00508001,2951.1,2951.0,4.93593468]
[1765890290858,0.4564,2952.0,2951.1,0.16946]
[1765890291054,4.6157,2952.0,2951.9,0.7527]
[1765890291257,4.6157,2952.0,2951.9,1.4776]
[1765890292455,3.8617,2952.0,2951.9,1.4776]
[1765890292654,0.00508001,2952.2,2952.1,1.4776]
[1765890292860,0.00508001,2952.2,2952.1,2.99221734]
[1765890293457,0.00508001,2952.2,2952.1,1.4776]
[1765890297668,0.00508001,2952.2,2952.1,1.647]
[1765890297867,0.00399874,2952.5,2952.4,1.4776]
[1765890298067,0.00399874,2952.5,2952.4,3.74870723]
[1765890298662,0.00399874,2952.5,2952.4,1.4776]
[1765890299062,1.4793,2952.4,2952.3,2.44049723]
[1765890299368,1.4793,2952.4,2952.3,3.91809723]
[1765890299571,0.00399874,2952.5,2952.4,1.4776]
[1765890299958,0.00399874,2952.5,2952.4,1.64699]
[1765890300366,1.48329874,2952.5,2952.4,0.92209]
[1765890300564,1.48329874,2952.5,2952.4,1.64699]
[1765890300768,0.72929874,2952.5,2952.4,1.64699]
[1765890302067,0.00399874,2952.5,2952.4,1.64699]
[1765890302371,0.00508001,2952.7,2952.6,1.4776]
[1765890302766,1.9357,2953.5,2953.4,1.4776]
[1765890302971,2.22,2953.5,2953.4,1.4776]
[1765890303163,40.8,2953.9,2953.8,0.7527]
[1765890303365,2.17,2953.9,2953.4,0.00280213]
[1765890303566,3.63254099,2953.9,2953.8,1.4698]
[1765890303774,2.89794099,2953.9,2953.8,1.4698]
[1765890303974,1.5148,2953.7,2953.6,3.74350723]
[1765890305967,3.8048,2953.7,2953.6,1.4724]
[1765890306668,3.8048,2953.7,2953.6,0.7553]
[1765890306872,1.955,2953.5,2953.4,1.46760213]
[1765890307072,1.955,2953.5,2953.4,5.04560213]
[1765890307073,2.63,2953.5,2953.4,5.04560213]
[1765890307470,0.75614099,2953.9,2953.8,1.4711]
[1765890307667,2.24264099,2953.9,2953.8,3.74220723]
[1765890307972,3.00414099,2953.9,2953.8,3.74220723]
[1765890308384,3.76294099,2953.9,2953.8,1.4711]
[1765890309177,3.76294099,2953.9,2953.8,0.7344]
[1765890311078,3.76294099,2953.9,2953.8,1.4711]
[1765890311974,3.76294099,2953.9,2953.8,0.7344]
[1765890312377,1.5203,2953.6,2953.5,1.64972]
[1765890312983,0.76414099,2953.9,2953.8,1.4804]
[1765890313175,3.04414099,2953.9,2953.8,1.4804]
[1765890313776,3.80294099,2953.9,2953.8,1.4804]
[1765890313979,3.80294099,2953.9,2953.8,0.7437]
[1765890314182,1.5203,2953.6,2953.5,1.64972]
[1765890314379,1.9694,2953.5,2953.4,1.48320213]
[1765890314573,3.4215,2953.5,2953.4,1.48320213]
[1765890314779,2.66,2953.5,2953.4,1.48320213]
[1765890315372,3.4215,2953.5,2953.4,2.99588661]
[1765890315777,4.6294,2953.5,2953.4,1.51548661]
[1765890315981,4.6294,2953.5,2953.4,2.25918661]
[1765890316590,4.6294,2953.5,2953.4,2.99588661]
[1765890319583,3.8706,2953.5,2953.4,2.99588661]
[1765890319786,4.6294,2953.5,2953.4,2.99588661]
[1765890320886,0.00264099,2953.9,2953.8,1.4804]
[1765890321090,0.00264099,2953.9,2953.8,4.50576896]
[1765890321282,2.24264099,2953.9,2953.8,4.50576896]
[1765890321482,3.00414099,2953.9,2953.8,4.50576896]
[1765890321684,3.00414099,2953.9,2953.8,2.99308448]
[1765890321991,3.76294099,2953.9,2953.8,2.99308448]
[1765890322985,3.76294099,2953.9,2953.8,1.51268448]
[1765890323289,3.76294099,2953.9,2953.4,3.19750213]
[1765890323290,1.9694,2953.5,2953.4,3.19750213]
[1765890323480,4.2994,2953.5,2953.4,3.19750213]
[1765890323686,4.2994,2953.5,2953.4,0.00280213]
[1765890323995,4.2994,2953.5,2952.6,0.16937]
[1765890324192,0.7615,2952.3,2952.2,1.48548001]
[1765890324384,1.5203,2952.3,2952.2,17.21848001]
[1765890324696,1.97276584,2952.5,2952.4,1.4804]
[1765890324991,4.44276584,2952.5,2952.4,1.48379948]
[1765890325791,4.44276584,2952.5,2952.4,2.99672874]
[1765890327691,3.68396584,2952.5,2952.4,2.99672874]
[1765890327994,2.47336584,2952.5,2952.4,2.99672874]
[1765890328891,0.00336584,2952.5,2952.4,2.99672874]
[1765890330385,1.97276584,2952.5,2952.4,2.99672874]
[1765890330590,4.43276584,2952.5,2952.4,18.00402874]
[1765890330988,4.43276584,2952.5,2952.4,18.74072874]
[1765890332795,4.43276584,2952.5,2952.4,2.99672874]
[1765890332995,4.43276584,2952.5,2952.4,18.73972874]
[1765890334899,4.43276584,2952.5,2952.4,18.00302874]
[1765890335492,4.43276584,2952.5,2952.4,17.25932874]
[1765890335691,4.43276584,2952.5,2952.4,17.99482874]
[1765890335899,4.43276584,2952.5,2952.4,18.76292874]
[1765890337303,4.43276584,2952.5,2952.4,17.24999948]
[1765890338805,4.43276584,2952.5,2952.4,1.50699948]
[1765890339100,4.43276584,2952.5,2952.4,0.00339948]
[1765890339307,1.4741,2952.3,2952.2,0.00508001]
[1765890339599,1.4741,2951.7,2951.6,0.7355]
[1765890339806,1.4741,2951.4,2951.3,1.0086459]
[1765890340002,4.1841,2951.4,2951.3,8.4036459]
[1765890340203,4.18748026,2951.4,2951.3,9.17499816]
[1765890340406,4.18748026,2951.4,2951.3,8.90185226]
[1765890341108,4.18748026,2951.4,2951.3,9.17440372]
[1765890342295,4.18748026,2951.4,2951.3,8.13375226]
[1765890342501,4.18748026,2951.4,2951.3,15.46525226]
[1765890342905,4.18748026,2951.4,2951.3,16.20075226]
[1765890343111,4.18748026,2951.4,2951.3,0.00325226]
[1765890343416,0.7565,2950.7,2950.6,2.1536]
[1765890343604,3.1265,2950.7,2950.6,2.1536]
[1765890343907,3.8441,2950.7,2950.6,14.8526]
[1765890344310,0.7565,2950.5,2950.4,1.94181948]
[1765890344503,0.7565,2950.5,2950.4,17.70281554]
[1765890344703,0.7565,2950.5,2950.4,17.43917607]
[1765890345111,1.9143,2950.5,2950.4,17.43917607]
[1765890345812,4.3643,2950.5,2950.4,0.00907607]
[1765890346909,4.3643,2950.5,2950.4,0.74457607]
[1765890347305,4.3643,2950.5,2950.4,0.00907607]
[1765890348112,4.3643,2950.5,2950.4,0.74457607]
[1765890351416,4.3643,2950.5,2950.4,0.00907607]
[1765890352818,4.3643,2950.5,2950.4,0.74457607]
[1765890353518,4.3643,2950.5,2950.4,0.00907607]
[1765890357814,1.4741,2950.3,2950.2,5.411]
[1765890358114,4.1141,2950.3,2950.2,5.411]
[1765890358319,1.4741,2949.7,2949.6,13.6726]
[1765890358520,4.1341,2949.7,2949.6,13.6726]
[1765890358914,4.1341,2949.7,2949.6,13.6767471]
[1765890359320,4.1341,2949.7,2949.6,13.94205835]
[1765890359823,4.1341,2949.7,2949.6,13.6767471]
[1765890360516,4.1341,2949.7,2949.6,0.0041471]
[1765890364114,3.4077,2949.7,2949.6,1.5208471]
[1765890364319,4.1817,2949.7,2949.6,1.5208471]
[1765890365624,4.1817,2949.7,2949.6,0.7396471]
[1765890365924,4.1817,2949.7,2949.6,0.0041471]
[1765890366122,1.5617,2948.7,2948.6,3.0538337]
[1765890366326,0.7877,2948.7,2948.6,5.2118337]
[1765890367022,0.7877,2948.7,2948.6,18.8258337]
[1765890367332,1.56441136,2948.7,2948.6,17.33831302]
[1765890367626,3.14041136,2948.7,2948.6,17.33731302]
[1765890368328,0.00271136,2948.7,2948.6,17.33731302]
[1765890368928,0.00271136,2948.7,2948.6,17.50691302]
[1765890369531,0.00271136,2948.7,2948.6,26.08197855]
[1765890373330,0.00271136,2948.7,2948.6,1.73591302]
[1765890373532,0.00271136,2948.7,2948.6,17.50591302]
[1765890374229,1.56441136,2948.7,2948.6,17.50591302]
[1765890374433,3.92441136,2948.7,2948.6,1.73591302]
[1765890374733,3.92441136,2948.7,2948.6,17.50491302]
[1765890375629,3.92441136,2948.7,2948.6,1.73591302]
[1765890375830,3.92441136,2948.7,2948.6,17.50591302]
[1765890377537,2.36271136,2948.7,2948.6,17.50591302]
[1765890377740,0.07271136,2948.7,2948.6,17.50591302]
[1765890378540,4.25441136,2948.7,2948.6,16.55311302]
[1765890378730,4.25441136,2948.7,2948.6,17.33431302]
[1765890379540,0.00271136,2948.7,2948.6,17.33431302]
[1765890379840,2.46271136,2948.7,2948.6,17.33431302]
[1765890380040,0.00271136,2948.7,2948.6,17.33431302]
[1765890380342,0.00271136,2948.7,2948.6,17.50391302]
[1765890381136,1.5617,2949.4,2949.3,1.5629]
[1765890381336,3.7617,2949.4,2949.3,1.5629]
[1765890381738,2.0347,2949.0,2948.9,0.7817]
[1765890381945,0.7877,2948.7,2948.6,17.33431302]
[1765890382137,0.7877,2948.7,2948.6,1.56631302]
[1765890382343,0.7877,2948.7,2948.6,17.33431302]
[1765890382839,0.00508001,2948.9,2948.8,1.5629]
[1765890383247,1.5617,2948.7,2948.6,17.50391302]
[1765890384146,1.5617,2948.7,2948.6,17.33431302]
[1765890384744,1.5617,2948.7,2948.6,1.56631302]
[1765890384947,3.8517,2948.7,2948.6,5.63231302]
[1765890385342,3.8517,2948.7,2948.6,0.00341302]
[1765890387850,1.5617,2947.9,2947.8,3.2078]
[1765890388156,4.1717,2947.9,2947.8,3.9895]
[1765890388453,4.1717,2947.9,2947.8,4.7707]
[1765890388754,4.1717,2947.9,2947.8,4.77453167]
[1765890390448,4.1717,2947.9,2947.8,3.21163167]
[1765890390653,4.1717,2947.9,2947.8,4.77453167]
[1765890391053,4.1717,2947.9,2947.8,3.99333167]
[1765890391254,1.9917,2947.9,2947.8,4.77453167]
[1765890392051,0.43,2947.9,2947.8,4.77453167]
[1765890392252,1.2607,2948.5,2948.4,1.5629]
[1765890392551,3.4707,2948.5,2948.4,1.5629]
[1765890392752,2.9977,2948.5,2948.4,1.5629]
[1765890393149,3.7717,2948.5,2948.4,1.5629]
[1765890393350,1.5617,2948.2,2948.1,0.16963]
[1765890393648,2.0068,2948.5,2948.4,1.4768]
[1765890393853,4.3768,2948.5,2948.4,1.4768]
[1765890394054,4.3768,2948.5,2948.4,0.7144]
[1765890394750,3.6211,2948.5,2948.4,1.4768]
[1765890394951,2.37,2948.5,2948.4,1.4768]
[1765890395358,3.1481,2948.5,2948.4,1.4768]
[1765890395650,1.53888001,2948.9,2948.8,1.4768]
[1765890395857,1.64318001,2948.9,2948.8,1.4768]
[1765890396546,0.00508001,2948.9,2948.8,1.4768]
[1765890400055,1.53888001,2948.9,2948.8,1.4768]
[1765890400349,1.53888001,2948.9,2948.8,11.3028]
[1765890400956,4.09888001,2948.9,2948.8,9.826]
[1765890401148,1.5338,2948.1,2948.0,24.4484]
[1765890401349,1.5338,2948.1,2948.0,23.734]
[1765890401350,4.1838,2948.1,2948.0,23.734]
[1765890401760,4.1838,2948.1,2948.0,24.4484]
[1765890402152,3.4281,2948.1,2948.0,25.2108]
[1765890402449,4.1838,2948.1,2948.0,23.734]
[1765890402654,4.1838,2948.1,2948.0,25.2108]
[1765890404258,4.1838,2948.1,2948.0,24.4484]
[1765890404472,4.1838,2948.1,2948.0,23.734]
[1765890404763,4.1838,2948.1,2948.0,24.4484]
[1765890405161,4.1838,2948.1,2948.0,23.734]
[1765890407157,4.1838,2948.1,2948.0,25.2108]
[1765890407766,4.1838,2948.1,2948.0,24.4484]
[1765890408367,4.1838,2948.1,2948.0,25.2108]
[1765890409566,1.5338,2947.9,2947.8,3.21163167]
[1765890409758,4.1738,2947.9,2947.8,3.21163167]
[1765890410262,44.9738,2947.9,2947.8,3.92603167]
[1765890410464,44.9738,2947.9,2947.8,4.68843167]
[1765890410664,44.9738,2947.9,2947.8,3.21163167]
[1765890411559,4.1738,2947.9,2947.8,3.92603167]
[1765890411865,4.1738,2947.9,2947.8,4.68843167]
[1765890412063,0.23,2947.9,2947.8,4.68843167]
[1765890412566,0.03,2947.9,2947.8,4.68843167]
[1765890412956,0.03,2947.9,2947.8,6.9659402]
[1765890413263,0.4267,2948.5,2947.8,6.9659402]
[1765890413470,2.9767,2948.5,2947.8,6.9659402]
[1765890414460,1.5338,2947.9,2947.8,3.21163167]
[1765890414663,3.7338,2947.9,2947.8,3.21163167]
[1765890417566,2.9781,2947.9,2947.8,4.68843167]
[1765890417765,3.7338,2947.9,2947.8,4.68843167]
[1765890417963,3.7338,2947.9,2947.8,3.21163167]
[1765890418566,3.7338,2947.9,2947.8,3.92603167]
[1765890418769,3.7338,2947.9,2947.8,4.68843167]
[1765890419470,3.7338,2947.9,2947.8,3.92603167]
[1765890420663,3.7338,2947.9,2947.8,4.68843167]
[1765890420858,2.35,2947.9,2947.8,4.68843167]
[1765890421375,3.1281,2947.9,2947.8,4.68843167]
[1765890421565,2.35,2947.9,2947.8,4.68843167]
[1765890421760,3.1281,2947.9,2947.8,4.68843167]
[1765890421967,2.35,2947.9,2947.8,4.68843167]
[1765890423777,3.1281,2947.9,2947.8,4.68843167]
[1765890423971,0.4267,2948.5,2947.8,4.68843167]
[1765890424171,2.7767,2948.5,2947.8,4.68843167]
[1765890424673,0.7473,2947.9,2947.8,4.68843167]
[1765890424874,0.7473,2947.9,2947.8,3.93363167]
[1765890424875,3.9016,2947.9,2947.8,3.93363167]
[1765890425373,3.9016,2947.9,2947.8,4.66533167]
[1765890425579,3.9016,2947.9,2947.8,3.93363167]
[1765890425773,3.9016,2947.9,2947.8,3.21163167]
[1765890427272,3.9016,2947.9,2947.8,4.66533167]
[1765890427476,3.9016,2947.9,2947.8,3.93363167]
[1765890427677,3.9016,2947.9,2947.8,3.21163167]
[1765890430392,2.44,2947.9,2947.8,4.66533167]
[1765890430579,3.9016,2947.9,2947.8,4.66533167]
[1765890430781,3.9016,2947.9,2947.8,3.21163167]
[1765890431585,0.16966,2947.7,2947.0,1.918]
[1765890431780,2.60966,2947.7,2947.0,1.918]
[1765890431993,40.8,2947.6,2947.5,0.4643]
[1765890432195,43.15,2947.6,2947.5,0.4643]
[1765890432392,49.15,2947.6,2947.5,0.4643]
[1765890432595,49.15,2947.6,2947.5,0.46722245]
[1765890432993,49.31967,2947.6,2947.3,0.00508897]
[1765890433191,43.31967,2947.6,2947.0,0.4643]
[1765890433395,0.16967,2947.5,2947.0,0.4643]
[1765890433596,2.76967,2947.5,2947.0,1.1863]
[1765890434094,2.76967,2947.5,2947.0,1.92228641]
[1765890434291,0.3524,2946.6,2946.5,0.4643]
[1765890434495,0.3524,2945.6,2945.5,0.4643]
[1765890434694,2.5324,2945.6,2945.5,1.1863]
[1765890434897,43.3324,2945.6,2945.5,1.1863]
[1765890435091,2.5324,2945.6,2945.5,1.1863]
[1765890435292,2.53623033,2945.6,2945.5,1.18877611]
[1765890435490,2.18383033,2945.6,2945.5,1.92047611]
[1765890435691,0.02,2945.6,2945.5,1.92047611]
[1765890435894,2.56,2945.6,2945.5,1.92047611]
[1765890436191,4.0216,2945.6,2945.5,1.45617611]
[1765890436394,4.0216,2945.6,2945.5,0.72447611]
[1765890436598,4.02403939,2945.6,2945.5,0.00247611]
[1765890437289,2.56243939,2945.6,2945.0,0.4643]
[1765890437493,3.30973939,2945.6,2945.5,1.4537]
[1765890437694,4.02403939,2945.6,2945.0,0.4643]
[1765890437893,0.4418,2945.5,2945.0,0.4643]
[1765890438090,2.38,2945.5,2945.4,1.4537]
[1765890438298,0.00243939,2945.6,2945.5,1.918]
[1765890438494,1.9034,2945.5,2945.4,0.00423575]
[1765890438696,4.2734,2945.5,2944.5,0.4643]
[1765890438994,0.00508897,2945.3,2945.2,1.4537]
[1765890439299,2.30508897,2945.3,2945.2,1.4537]
[1765890439703,2.30508897,2945.3,2945.2,1.45645585]
[1765890440195,0.00508897,2945.3,2945.2,1.45645585]
[1765890440596,0.00508897,2945.3,2945.2,3.73396438]
[1765890440993,0.00243939,2945.6,2945.5,1.918]
[1765890441194,2.50243939,2945.6,2945.5,1.918]
[1765890441701,0.00243939,2945.6,2945.5,1.918]
[1765890443891,40.8,2946.4,2945.5,1.918]
[1765890443892,0.1762,2947.0,2945.7,1.62347]
[1765890444096,3.6416,2947.0,2946.9,1.4537]
[1765890444293,2.18,2947.0,2946.9,1.4537]
[1765890444796,0.4418,2948.0,2947.0,0.4643]
[1765890444997,1.46668897,2947.8,2947.7,0.722]
[1765890445202,44.72668897,2947.8,2947.7,0.72454921]
[1765890445408,44.72668897,2947.8,2947.7,0.00254921]
[1765890446994,44.72668897,2947.8,2947.2,0.00508897]
[1765890446995,1.4616,2947.3,2947.2,0.00508897]
[1765890447206,3.8216,2947.3,2947.2,0.00508897]
[1765890448102,3.8216,2947.3,2947.2,0.00875496]
[1765890449903,3.1073,2947.3,2947.2,1.46245496]
[1765890450106,2.36,2947.3,2947.2,1.46245496]
[1765890450700,40.80508897,2947.8,2947.7,1.4537]
[1765890450899,2.85668897,2947.8,2947.2,2.45594349]
[1765890451203,1.39508897,2947.8,2947.2,1.63213496]
[1765890451400,1.39508897,2947.8,2947.7,1.4537]
[1765890451604,1.42837356,2949.8,2948.4,1.4537]
[1765890451798,1.7618,2949.0,2948.4,1.4537]
[1765890452105,0.7473,2948.9,2948.8,0.722]
[1765890452410,0.4418,2948.5,2947.5,0.4643]
[1765890452601,0.75238897,2948.3,2948.2,1.4537]
[1765890452798,2.63508897,2948.3,2948.2,1.4537]
[1765890453202,1.4616,2948.1,2947.5,0.4643]
[1765890453407,2.41,2948.1,2948.0,1.9184]
[1765890455808,0.00297745,2948.5,2948.0,3.896]
[1765890456003,0.4418,2949.5,2948.4,2.27750853]
[1765890456208,0.4319,2949.0,2948.8,0.16959]
[1765890456404,0.7458,2948.9,2948.8,0.16959]
[1765890456608,3.0558,2948.9,2948.8,0.16959]
[1765890456804,0.00508897,2949.1,2949.0,0.6284]
[1765890457010,0.00783734,2949.1,2949.0,0.79798]
[1765890459314,0.00783734,2949.1,2949.0,0.65268]
[1765890459519,0.00783734,2949.1,2949.0,1.13578]
[1765890459820,0.00783734,2949.1,2949.0,3.41133126]
[1765890463424,0.00783734,2949.1,2949.0,1.13578]
[1765890464019,0.00783734,2949.1,2948.6,0.44568897]
[1765890464020,1.6286,2948.7,2948.6,0.44568897]
[1765890464220,0.4503,2949.0,2948.6,0.88628897]
[1765890464526,3.7969,2949.0,2948.9,0.4406]
[1765890464715,2.8503,2949.0,2948.9,0.873]
[1765890465623,1.6286,2948.9,2948.8,0.16959]
[1765890465927,1.6286,2948.7,2948.6,0.00508897]
[1765890466125,4.2286,2948.7,2948.6,0.00508897]
[1765890466724,1.6286,2948.3,2948.2,1.063]
[1765890466924,3.7986,2948.3,2948.2,1.063]
[1765890467124,0.4503,2947.5,2947.4,24.5698]
[1765890467322,2.8103,2947.5,2947.4,24.5698]
[1765890467625,0.4503,2947.5,2947.4,24.5698]
[1765890467825,1.2569,2948.0,2947.9,0.4085]
[1765890468019,3.8769,2948.0,2947.9,0.4085]
[1765890468219,4.6989,2948.0,2947.9,0.4085]
[1765890468421,4.6989,2948.0,2947.4,23.738]
[1765890468615,1.2303,2948.0,2947.9,0.8088]
[1765890469026,1.2569,2948.5,2948.4,0.4003]
[1765890469226,4.3589,2948.5,2947.5,2.57900075]
[1765890469427,3.5369,2948.5,2948.4,0.4003]
[1765890470216,1.2569,2949.0,2948.9,0.3921]
[1765890470417,0.4503,2949.5,2949.0,0.7842]
[1765890470720,2.55783734,2949.1,2949.0,0.7842]
[1765890471127,0.4503,2949.0,2948.8,0.00508897]
[1765890471325,1.6286,2948.9,2948.8,0.00508897]
[1765890472419,3.8686,2948.9,2948.8,0.00508897]
[1765890477733,1.6286,2948.4,2948.3,7.34]
[1765890478633,1.6286,2948.4,2948.3,7.6741]
[1765890478826,4.2286,2948.4,2948.3,7.34]
[1765890481341,45.0286,2948.4,2948.3,7.34]
[1765890482634,45.0286,2948.4,2947.7,0.16966]
[1765890482635,1.6286,2947.8,2947.7,0.16966]
[1765890482833,4.2686,2947.8,2947.7,0.16966]
[1765890483339,0.8066,2947.5,2947.4,25.3136]
[1765890484329,40.8,2948.4,2947.4,23.737]
[1765890484528,43.2,2948.4,2947.4,23.737]
[1765890488140,43.36962,2948.4,2947.4,23.737]
[1765890488342,1.42357686,2948.3,2947.2,15.00775496]
[1765890488536,1.42357686,2948.2,2947.2,15.00775496]